Cogmind - Beta 17 @@@ ROGUE MODE // 2026.07.29 @ 07:53:02 Player: gortmind Result: Core melted Performance ------------- Evolutions (0) 0 Regions Visited (1) 200 Robots Destroyed (16) 80 Value Destroyed (324) 324 Prototype IDs (1) 20 Alien Tech Used (0) 0 Bonus (0) 0 TOTAL SCORE: 624 Bonus ------- None Cogmind --------- Core Integrity 0/250 Matter 300/300 Energy 280/280 System Corruption 1% Temperature Critical (524) Movement Treading (160) Location -10/Materials Parts ------- > --- POWER (1) -------- Heavy Ion Engine > --- PROPULSION (2) --- Light Treads > --- UTILITY (2) ------ Targeting Computer Hacking Suite > --- WEAPON (2) ------- Particle Gun > --- INVENTORY (5) ---- Heavy Ion Engine Heavy Ion Engine Light Treads Signal Interpreter Particle Gun Peak State ------------ > --- POWER ------------ Heavy Ion Engine > --- PROPULSION ------- Light Treads Light Treads > --- UTILITY ---------- Targeting Computer Hacking Suite > --- WEAPON ----------- Particle Gun Particle Gun > --- INVENTORY -------- Heavy Ion Engine Heavy Ion Engine Signal Interpreter Particle Gun [Rating: 13] Favorites ----------- Power Heavy Ion Engine Engine Heavy Ion Engine Propulsion Light Treads Treads Light Treads Utility Targeting Computer Device Tractor Beam Storage Small Storage Unit Processor Targeting Computer Hackware Hacking Suite Protection Weapon Shielding Weapon Particle Gun Energy Gun Particle Gun Ballistic Gun Assault Rifle Build | -11 -10 ------- Run | Yrd Mat Slots Evolved . | . . Power . | . . Propulsion . | . . Utility . | . . Weapon . | . . Parts Attached 15 | 8 7 Power 2 | 1 1 Engine 2 | 1 1 Core . | . . Reactor . | . . Propulsion 3 | 2 1 Treads 3 | 2 1 Leg . | . . Wheel . | . . Hover . | . . Flight . | . . Utility 5 | 2 3 Device 1 | 1 . Storage 1 | 1 . Processor 1 | . 1 Hackware 1 | . 1 Protection 1 | . 1 Artifact . | . . Weapon 5 | 3 2 Energy Gun 3 | 1 2 Energy Cannon . | . . Ballistic Gun 2 | 2 . Ballistic Cannon . | . . Launcher . | . . Special Weapon . | . . Impact Weapon . | . . Slashing Weapon . | . . Piercing Weapon . | . . Special Melee Weapon . | . . Unidentified Prototypes 1 | . 1 Parts Lost 3 | . 3 Power . | . . Propulsion 1 | . 1 Utility 1 | . 1 Weapon 1 | . 1 Highest Loss Streak 2 | . 2 To Critical Strikes . | . . Average Backups 5 | 4 5 Power 1 | . 1 Propulsion 2 | 3 1 Utility . | . 1 Weapon . | . . Tool/Special . | . . Unused Backups 11 | . 11 Power 5 | . 5 Propulsion 4 | . 4 Utility 1 | . 1 Weapon 1 | . 1 Tool/Special . | . . Average Slot Usage (%) 96 | . 96 Engine 14 | . 14 Treads 25 | . 25 Device 4 | . 4 Storage 4 | . 4 Processor 9 | . 9 Hackware 1 | . 1 Protection 6 | . 6 Energy Gun 16 | . 16 Ballistic Gun 11 | . 11 Peak Build Rating 13 | 7 13 Average Rating 9 | 4 9 On Entrance 3 | . 7 Avg Prop Armor Cover (%) . | . . Naked Turns . | . . Heaviest Build 15 | 12 15 Greatest Support 40 | 40 40 Greatest Overweight (x) 4 | 1 4 Average Overweight (x) . | . . Largest Inventory Capacity 8 | 8 8 Average Capacity 6 | 7 5 Most Carried 8 | 8 8 Average Carried 5 | 4 5 Final Capacity 8 | 8 5 Final Carried 6 | 6 5 Class Distribution -------------------- 100% | Mutant Dominant Class ---------------- Mutant | -10/Materials Resources | -11 -10 ----------- Run | Yrd Mat Matter Collected 551 | 292 259 Remotely 244 | 173 71 Salvage Created 513 | 68 445 Parts 21 | 2 19 Haulers Intercepted . | . . Recyclers Shooed . | . . Parts Field Recycled . | . . Retrieved Matter . | . . Parts Self-Destructed . | . . Prevented . | . . Parts Restored . | . . Kills | -11 -10 ------- Run | Yrd Mat Combat Hostiles Destroyed 12 | . 12 Guns 10 | . 10 Classes Destroyed 4 | 1 3 Recycler 3 | 1 2 Operator 1 | . 1 Swarmer 6 | . 6 Grunt 6 | . 6 Best Kill Streak 4 | 1 4 Combat Bots Only 4 | . 4 Max Kills in Single Turn 2 | 1 2 Gunslinging 1 | . 1 Exploded . | . . Melee . | . . Uniques/NPCs Destroyed . | . . Combat | -11 -10 -------- Run | Yrd Mat Hostile Shots Fired 88 | . 88 Missed 13 | . 13 Hits 75 | . 75 Projectile 75 | . 75 Critical Strikes 1 | . 1 Damage Taken 901 | . 901 Core 289 | . 289 Absorbed by Shields . | . . Redirected to Shielding 20 | . 20 Core Remaining (%) 100 | 100 . Volleys Fired 61 | 8 53 Largest 2 | 2 2 Hottest 130 | 60 130 Shots Fired 113 | 16 97 Gun 113 | 16 97 Cannon . | . . Launcher . | . . Special . | . . Kinetic 34 | 8 26 Thermal 79 | 8 71 Explosive . | . . Electromagnetic . | . . Robot Hit Streak 11 | 6 11 Robot Miss Streak 4 | 2 4 Penetration Max . | . . Secondary Targets 1 | . 1 Max Gunslinging Chain 1 | . 1 Shots Hit Robots 76 | 12 64 Core Hits 23 | 2 21 Critical Kills . | . . Critical Parts Destroyed . | . . Critical Strikes 1 | . 1 Burn 1 | . 1 Melee Attacks . | . . Impact . | . . Slashing . | . . Piercing . | . . Sneak Attacks . | . . Combat Hostiles . | . . Follow-up Attacks . | . . Damage Inflicted 1047 | 143 904 Guns 1045 | 143 902 Cannons . | . . Explosions . | . . Melee . | . . Ramming 2 | . 2 Kinetic 270 | 78 192 Thermal 775 | 65 710 Explosive . | . . Electromagnetic . | . . Impact . | . . Slashing . | . . Piercing . | . . Highest Corruption 1 | . 1 Average Corruption 1 | . 1 Corruption Purged . | . . Corruption Blocked . | . . Effects 6 | . 6 Matter Fused 2 | . 2 Heat Flow Errors 2 | . 2 Energy Discharges 1 | . 1 Data Loss (minor) 1 | . 1 Overload Shots . | . . Overflow Damage . | . . Projectiles . | . . Explosions . | . . Melee . | . . Knockbacks . | . . Impact . | . . Kinetic . | . . Secondary . | . . Self-Inflicted Damage . | . . Shots . | . . Rammed 2 | . 2 Targets Rammed 2 | . 2 Kicked . | . . Crushed . | . . Highest Temperature 540 | . 540 Average Temperature 258 | . 258 Received Heat Transfer 378 | . 378 Effects 18 | . 18 Shutdowns 5 | . 5 Energy Bleed 1 | . 1 Interference 4 | . 4 Matter Decay 2 | . 2 Damage (major) 5 | . 5 Damage (core) 1 | . 1 Siege Activations . | . . Martial Activations . | . . Shielding Activations . | . . Robots Disrupted . | . . Combat Hostiles . | . . Robots Corrupted . | . . Combat Hostiles . | . . Parts Fried . | . . Impact Corruptions . | . . Robots Melted 2 | . 2 Combat Hostiles 2 | . 2 Parts Melted 6 | . 6 Heat Transferred 1926 | 150 1776 Parts Sabotaged . | . . Parts Stolen . | . . Parts Stripped . | . . Power Chain Reactions . | . . Alert | -11 -10 ------- Run | Yrd Mat Maximum Alert Level . | . . Low Security (%) 100 | 100 100 Level 1 . | . . Level 2 . | . . Level 3 . | . . Level 4 . | . . Level 5 . | . . High Security . | . . Max Security . | . . Peak Influence 94 | 5 94 Initial . | . . Average 21 | . 26 Influence Increases 320 | 5 315 Destroy 0b10 Robot/C 240 | . 240 Destroy 0b10 Robot/NC 20 | 5 15 Destroy Leader 60 | . 60 Influence Decreases 226 | 5 221 Time Decay 196 | 5 191 Lost Part 30 | . 30 Squads Dispatched 2 | . 2 Investigation 1 | . 1 Extermination . | . . Reinforcement 1 | . 1 Assault . | . . Garrison . | . . Intercept . | . . Searches Triggered . | . . Construction Impeded . | . . Haulers Reinforced . | . . Active Scanning Responses . | . . Cargo Convoy Interrupts . | . . Stealth | -11 -10 --------- Run | Yrd Mat Distress Signals . | . . Communications Jammed . | . . Distress Signals . | . . Times Spotted 15 | . 15 Peak Tracking Total 5 | . 5 Tactical Retreats . | . . Traps | -11 -10 ------- Run | Yrd Mat Traps Triggered . | . . Indirectly . | . . Trap Hack Attempts . | . . Triggered . | . . Disarmed . | . . Reprogrammed . | . . Reused . | . . Traps Extracted . | . . Installed . | . . Triggered . | . . Machines | -11 -10 ---------- Run | Yrd Mat Machines Disabled . | . . Max in Single Turn . | . . Machines Repaired . | . . Machines Dismantled . | . . Machines Sabotaged . | . . Overloaded Fab Kills . | . . Hacking | -11 -10 --------- Run | Yrd Mat Machines Accessed 2 | . 2 Terminals 1 | . 1 Fabricators . | . . Repair Stations . | . . Recycling Units 1 | . 1 Scanalyzers . | . . Garrison Access . | . . Total Hacks 5 | . 5 Successful 2 | . 2 Failed 3 | . 3 Catastrophic 1 | . 1 Database Lockouts . | . . Manual . | . . Terminals 2 | . 2 Fabricators . | . . Repair Stations . | . . Recycling Units 3 | . 3 Scanalyzers . | . . Garrison Access . | . . Terminal Hacks . | . . Fabricator Hacks . | . . Repair Station Hacks . | . . Recycling Unit Hacks 2 | . 2 Report Inventory 1 | . 1 Retrieve Components 1 | . 1 Scanalyzer . | . . Garrison Access Hacks . | . . Unauthorized Hacks . | . . Terminals . | . . Fabricators . | . . Repair Stations . | . . Recycling Units . | . . Scanalyzers . | . . Garrison Access . | . . Data Cores Recovered . | . . Used . | . . Hacking Detections 2 | . 2 Full Trace Events 2 | . 2 Feedback Events 1 | . 1 Corruption 1 | . 1 Feedback Blocked . | . . Robot Schematics Acquired . | . . Robots Built . | . . Authchips . | . . Time . | . . Total Robot Build Rating . | . . Part Schematics Acquired . | . . Parts Built . | . . Authchips . | . . Time . | . . Total Part Build Rating . | . . Part Studies Acquired . | . . Parts Repaired . | . . Time . | . . Parts Recycled . | . . Recycled Matter . | . . Retrieved Matter . | . . Retrieved Components 3 | . 3 Parts Scanalyzed . | . . Part Schematics Acquired . | . . Parts Damaged . | . . Bothacking | -11 -10 ------------ Run | Yrd Mat Used RIF Installer . | . . Robots Hacked . | . . Non-combat . | . . Combat . | . . Robot Hacks Applied . | . . Relay Couplers Released . | . . Fabnet Peak Effective % . | . . Robots Rewired . | . . Allies Hacked . | . . Hacks Repelled . | . . Allies | -11 -10 -------- Run | Yrd Mat Total Allies . | . . Largest Group . | . . Highest-Rated Group . | . . Highest-Rated Ally . | . . Total Orders . | . . Ally Attacks . | . . Total Damage . | . . Kills . | . . Allies Corrupted . | . . Allies Melted . | . . Intel | -11 -10 ------- Run | Yrd Mat Active Infowar (turns) . | . . Robot Analysis Total . | . . Derelict Logs Recovered . | . . Drone Launches . | . . Drone Recoveries . | . . Exploration | -11 -10 ------------- Run | Yrd Mat Turns Passed 1089 | 177 912 Spaces Moved 492 | 97 395 Core 37 | 35 2 Treads 455 | 62 393 Legs . | . . Wheels . | . . Hover . | . . Flight . | . . Fastest Speed 50 | 50 160 Average Speed 155 | 135 160 Slowest Speed 250 | 160 250 Overloaded Moves . | . . Propulsion Burnouts . | . . Robots Hopped . | . . Potential Cave-ins . | . . Cave-ins Triggered . | . . Exploration Rate (%) 20 | 5 35 Regions Visited 1 Branch Regions . Pre-discovered Areas . | . . Known Exits Taken . | . . Unknown Exits Taken 1 | 1 . Scrap Searched . | . . Spaces Dug . | . . Terrain Destroyed . | . . Melee . | . . Projectile . | . . AOE . | . . Terrain Rammed . | . . Walls Destroyed . | . . Machines Disabled . | . . Actions | -11 -10 --------- Run | Yrd Mat Total 710 | 127 583 Wait 92 | . 92 Move 491 | 96 395 Hop . | . . Pick Up 31 | 14 17 Fast Attach . | . . Attach 10 | 7 3 Detach 1 | . 1 Swap 7 | 1 6 Drop 15 | 1 14 Fire 61 | 8 53 Melee . | . . Ram . | . . Kick . | . . Crush 2 | . 2 Escape Stasis . | . . Rewire . | . . Trap . | . . Miscellaneous . | . . Route ------- -11/Scrapyard -10/Materials (discovered 1 exit: [*Sub]) History --------- Turn | Location | Event 17 | -11/Scrapyard | Discovered new exit (range 15) 178 | -11/Scrapyard | Entered Materials 312 | -10/Materials | Build established: Mutant 374 | -10/Materials | Discovered new exit (range 9) 932 | -10/Materials | Core integrity fell below 50% 1080 | -10/Materials | Core integrity fell below 20% 1091 | -10/Materials | Core melted Last Messages --------------- 00981_ Acquired Lgt. Treads. 00982_ K-01 Serf collects debris. 00983_ R-06 Scavenger collects Flight Unit. 00985_ K-01 Serf collects debris. 00986_ Acquired Hacking Suite. 00988_ K-01 Serf collects debris. 00989_ R-06 Scavenger collects Sml. Storage Unit. 00991_ K-01 Serf collects debris. 00993_ R-06 Scavenger collects Tractor Beam. 01052_ Critical hit (Burn: +37). 01063_ Power failure, Hvy. Ion Engine shutdown. 01069_ Particle Gun destroyed. 01074_ Sml. Laser melted. 01074_ G-34 Mercenary destroyed. 01082_ Acquired 29 matter. 01089_ G-47 Trooper destroyed. 01090_ Acquired 1 matter. 01090_ R-06 Scavenger collects Ion Engine. 01091_ Overheating: Core damaged (-50). Map ----- +----------------------------------------------------+ | ???????????????????????????????????????????????? | | ???????????????????????????????????????????????? | | ???????????????????????????????????????????????? | | ???????????????????????????????????????????????? | | ???????????????????????????????????????????????? | | ???????????????????????????????????????????????? | | ????????????????????###########????????????????? | | ????????????????????# """ #????????????????? | | ????????????????????# "R" #????????????????? | | ????????????????????# " " #????????????????? | | ????????????????????# #????????????????? | | ????????????????????# ![[ #????????????????? | | ????????????????????+ ![[ #????????????????? | | ????????????????????# ![ ??????????????????? | | ?????????????????????? ????????????######### | | ??????????????????????##+##????????????# # | | ??????????????????????# ############## # | | ??????????????????????# # """ | | ??????????????????????# ############## + """ | | ??????????????????????# #????????????# # """ | | ????????????######+#### #????????????# # | | ????????????# r #????????????# ##### | | ????????????+ r #????????????# ##### | | ????????????# = #????????????# % | | ????????????# #######/####?########### | | ????????????#???????# *@ #?#X + | | ????????????????????# """ #?## # | | ????????????????????# """ #??# # % | | ????????????????????# """ #?#< # ##### | | ????????????????????# #?########### #?# | | ????????????????????# #?????????#"" #?# | | ????????????????????########?????????#"" #?# | | ?????????????????????????????????????#"T #?# | | ?????????????????????????????????????#"" #?# | | ?????????????????????????????????????#"" ##### | | ?????????????????????????????########### # | | ?????????????????????????????# # # | | ?????????????????????????????# # # | | ?????????????????????????????# """ # # | | ?????????????????????????????# """"" %+ + ]! | | ?????????????????????????????# """"" ""# # !! | | ?????????????????????????????# """""!Y"# # !! | | ?????????????????????????????# """ !""# # | | ?????????????????????????????# ##### | | ?????????????????????????????######+#####??#+### | | ????????????????????????????????# #??# ## | | ????????????????????????????????# """ #### ## | | ????????????????????????????????# """ + | | ????????????????????????????????# """ ####### | | ????????????????????????????????# #?????# | +----------------------------------------------------+ Best States ------------- Heat Dissipation 25 Energy Generation 14 Energy Capacity 280 Matter Stores 300 Matter Capacity 300 Sight Range 16 Terrain Scan Density 10 Weapon Shielding 33 Evasion (%) 40 Targeting Accuracy 5 Recoil Reduction 2 Offensive Hacking 10 Item Schematics ----------------- None Robot Schematics ------------------ None Fabricated ------------ Nothing Repaired ---------- Nothing Studied --------- None Alien Tech Used ----------------- None Achievements -------------- Use The Force Challenges ------------ None Game ------ Seed FissionForceWand Manual? 0 Play Time 00:11:26 Cumulative 13.0 hours Start 2026.07.29 @ 07:42:31 End 2026.07.29 @ 07:53:02 Sessions 1 Manual Loads 0 Difficulty Rogue Special Mode None Game No. 19 Rogue 19 Adventurer 0 Explorer 0 Win Type - Total 0 Types 0/0/0/0/0/0/0/0/0/0 Lore% 12 Gallery% 13 Achievement% 15 Wizard Run 0 Options --------- Layout 1 ASCII 0 Keyboard 0 Movement Mouse Keybinds 0 Fullscreen 1 Font 48/Smallcaps Map View 50x35 Zoom Use 0% Tactical HUD 1 Map Filters NONE Filters NONE Steam 1 RUN: fd8edd39-87c0-4997-8f81-6ae1c4af7a4e